fUSD/lending_fUSD_20241210
["ID","MTS","AMOUNT","RATE_DAILY","PERIOD"]
[344836068,1733821839417,-500.0,0.00011098,2]
[344836069,1733821839427,-500.0,0.00011098,2]
[344836070,1733821839436,-500.0,0.00011098,2]
[344836071,1733821839446,-632.3255242,0.00011098,2]
[344836072,1733821839456,-500.0,0.00011098,2]
[344836073,1733821839466,-500.0,0.00011098,2]
[344836074,1733821839476,-500.0,0.00011098,2]
[344836075,1733821839486,-500.0,0.00011098,2]
[344836076,1733821839495,-500.0,0.00011098,2]
[344836077,1733821839504,-500.0,0.00011098,2]
[344836078,1733821839513,-500.0,0.00011098,2]
[344836079,1733821839522,-500.0,0.00011098,2]
[344836080,1733821839532,-500.0,0.00011098,2]
[344836081,1733821839541,-500.0,0.00011098,2]
[344836082,1733821839550,-500.0,0.00011098,2]
[344836083,1733821839560,-500.0,0.00011098,2]
[344836084,1733821839571,-10620.19666028,0.00011098,2]
[344836085,1733821839581,-500.0,0.00011098,2]
[344836086,1733821839591,-1000.0,0.00011098,2]
[344836087,1733821839600,-500.0,0.00011098,2]
[344836088,1733821839609,-500.0,0.00011098,2]
[344836089,1733821839621,-500.0,0.00011098,2]
[344836090,1733821839631,-487.48922593,0.00011098,2]
[344836091,1733821839641,-574.8427348,0.00011098,2]
[344836092,1733821839653,-500.0,0.00011098,2]
[344836093,1733821839663,-500.0,0.00011098,2]
[344836094,1733821839672,-500.0,0.00011098,2]
[344836095,1733821839681,-500.0,0.00011098,2]
[344836096,1733821839691,-500.0,0.00011098,2]
[344836097,1733821839700,-500.0,0.00011098,2]
[344836098,1733821839710,-500.0,0.00011098,2]
[344836099,1733821839719,-500.0,0.00011098,2]
[344836100,1733821839729,-500.0,0.00011098,2]
[344836101,1733821839738,-500.0,0.00011098,2]
[344836102,1733821839748,-299.61806106,0.00011098,2]
[344836103,1733821839757,-500.0,0.00011098,2]
[344836104,1733821839767,-500.0,0.00011098,2]
[344836105,1733821839776,-547.12,0.00011098,2]
[344836106,1733821839786,-500.0,0.00011098,2]
[344836107,1733821839796,-500.0,0.00011098,2]
[344836108,1733821839805,-500.0,0.00011098,2]
[344836109,1733821839815,-500.0,0.00011098,2]
[344836110,1733821839824,-500.0,0.00011098,2]
[344836111,1733821839834,-504.9370339,0.00011098,2]
[344836112,1733821839843,-500.0,0.00011098,2]
[344836113,1733821839853,-500.0,0.00011098,2]
[344836114,1733821839864,-514.14034008,0.00011098,2]
[344836115,1733821839874,-500.71936582,0.00011098,2]
[344836116,1733821839883,-500.0,0.00011098,2]
[344836117,1733821839893,-500.0,0.00011098,2]
[344836119,1733821839903,-500.0,0.00011098,2]
[344836120,1733821839912,-486.09862984,0.00011098,2]
[344836121,1733821839922,-224.64579533,0.00011098,2]
[344836122,1733821839932,-759.89,0.00011098,2]
[344836123,1733821839941,-500.0,0.00011098,2]
[344836124,1733821839952,-500.0,0.00011098,2]
[344836125,1733821839961,-500.0,0.00011098,2]
[344836126,1733821839971,-500.0,0.00011098,2]
[344836127,1733821839980,-500.0,0.00011098,2]
[344836128,1733821839991,-500.0,0.00011098,2]
[344836129,1733821840001,-500.0,0.00011098,2]
[344836130,1733821840010,-500.0,0.00011098,2]
[344836131,1733821840020,-500.0,0.00011098,2]
[344836132,1733821840030,-500.0,0.00011098,2]
[344836133,1733821840039,-500.0,0.00011098,2]
[344836134,1733821840049,-500.0,0.00011098,2]
[344836135,1733821840059,-500.0,0.00011098,2]
[344836136,1733821840069,-500.0,0.00011098,2]
[344836137,1733821840078,-500.0,0.00011098,2]
[344836138,1733821840088,-500.0,0.00011098,2]
[344836139,1733821840097,-500.0,0.00011098,2]
[344836140,1733821840107,-500.0,0.00011098,2]
[344836141,1733821840119,-500.0,0.00011098,2]
[344836142,1733821840129,-500.0,0.00011098,2]
[344836143,1733821840138,-500.0,0.00011098,2]
[344836144,1733821840148,-500.0,0.00011098,2]
[344836145,1733821840157,-500.0,0.00011098,2]
[344836146,1733821840167,-500.0,0.00011098,2]
[344836147,1733821840176,-500.0,0.00011098,2]
[344836148,1733821840186,-500.0,0.00011098,2]
[344836149,1733821840195,-500.0,0.00011098,2]
[344836150,1733821840205,-500.0,0.00011098,2]
[344836151,1733821840216,-500.0,0.00011098,2]
[344836152,1733821840226,-516.29641288,0.00011098,2]
[344836153,1733821840236,-500.0,0.00011098,2]
[344836154,1733821840246,-500.0,0.00011098,2]
[344836155,1733821840257,-500.0,0.00011098,2]
[344836156,1733821840267,-500.0,0.00011098,2]
[344836157,1733821840276,-784.07,0.00011098,2]
[344836158,1733821840286,-500.0,0.00011098,2]
[344836159,1733821840295,-500.0,0.00011098,2]
[344836160,1733821840305,-500.0,0.00011098,2]
[344836161,1733821840314,-500.0,0.00011098,2]
[344836162,1733821840323,-159.791776,0.00011098,2]
[344836163,1733821840332,-500.0,0.00011098,2]
[344836164,1733821840341,-500.0,0.00011098,2]
[344836165,1733821840351,-1012.14,0.00011099,2]
[344836166,1733821840363,-500.0,0.00011099,2]
[344836167,1733821840373,-500.0,0.00011099,2]
[344836168,1733821840383,-500.0,0.00011099,2]
[344836169,1733821840392,-500.0,0.00011099,2]
[344836170,1733821840402,-386.65,0.00011099,2]
[344836171,1733821840411,-305.60106309,0.00011099,2]
[344836172,1733821840421,-574.39777565,0.00011099,2]
[344836173,1733821840430,-500.0,0.00011099,2]
[344836174,1733821840439,-500.0,0.00011099,2]
[344836175,1733821840449,-500.0,0.00011099,2]
[344836176,1733821840459,-194.58,0.00011099,2]
[344836177,1733821840468,-500.0,0.00011099,2]
[344836178,1733821840478,-500.0,0.00011099,2]
[344836179,1733821840487,-500.0,0.00011099,2]
[344836180,1733821840497,-645.97,0.00011099,2]
[344836181,1733821840507,-500.0,0.00011099,2]
[344836182,1733821840516,-500.0,0.00011099,2]
[344836183,1733821840525,-500.0,0.00011099,2]
[344836184,1733821840534,-500.0,0.00011099,2]
[344836185,1733821840544,-500.0,0.00011099,2]
[344836186,1733821840553,-500.0,0.00011099,2]
[344836187,1733821840563,-500.0,0.00011099,2]
[344836188,1733821840575,-500.0,0.00011099,2]
[344836189,1733821840585,-500.0,0.00011099,2]
[344836190,1733821840594,-500.0,0.00011099,2]
[344836191,1733821840603,-500.0,0.00011099,2]
[344836192,1733821840617,-168.29519619,0.00011099,2]
[344836193,1733821840627,-536.81,0.00011099,2]
[344836194,1733821840636,-500.0,0.00011099,2]
[344836195,1733821840647,-500.0,0.00011099,2]
[344836196,1733821840656,-500.0,0.00011099,2]
[344836197,1733821840665,-455.7,0.00011099,2]
[344836198,1733821840675,-502.50622155,0.00011099,2]
[344836199,1733821840684,-295.64526115,0.00011099,2]
[344836200,1733821840693,-501.73987058,0.00011099,2]
[344836201,1733821840703,-501.51947312,0.00011099,2]
[344836202,1733821840712,-502.74611911,0.00011099,2]
[344836203,1733821840721,-500.0,0.00011099,2]
[344836204,1733821840730,-421.08,0.00011099,2]
[344836205,1733821840740,-503.68436083,0.00011099,2]
[344836206,1733821840750,-512.33647199,0.00011099,2]
[344836207,1733821840759,-502.03142719,0.00011099,2]
[344836208,1733821840768,-502.47301803,0.00011099,2]
[344836209,1733821840777,-500.0,0.00011099,2]
[344836210,1733821840786,-505.1106607,0.00011099,2]
[344836211,1733821840796,-501.48869569,0.00011099,2]
[344836212,1733821840805,-500.0,0.00011099,2]
[344836213,1733821840814,-500.0,0.00011099,2]
[344836214,1733821840824,-500.0,0.00011099,2]
[344836215,1733821840833,-504.91594539,0.00011099,2]
[344836216,1733821840843,-502.03200082,0.00011099,2]
[344836217,1733821840852,-500.0,0.00011099,2]
[344836218,1733821840862,-478.05,0.00011099,2]
[344836219,1733821840871,-502.46184117,0.00011099,2]
[344836220,1733821840881,-500.0,0.00011099,2]
[344836221,1733821840890,-500.0,0.00011099,2]
[344836222,1733821840900,-500.0,0.00011099,2]
[344836223,1733821840910,-500.0,0.00011099,2]
[344836224,1733821840919,-647.2,0.00011099,2]
[344836225,1733821840928,-506.86748146,0.00011099,2]
[344836226,1733821840938,-317.64353299,0.00011099,2]
[344836227,1733821840947,-501.21124125,0.00011099,2]
[344836228,1733821840956,-501.48800764,0.00011099,2]
[344836229,1733821840965,-506.04736512,0.00011099,2]
[344836230,1733821840975,-503.59025184,0.00011099,2]
[344836231,1733821840984,-500.0,0.00011099,2]
[344836232,1733821840993,-500.0,0.00011099,2]
[344836233,1733821841003,-500.0,0.00011099,2]
[344836234,1733821841013,-486.27999999,0.00011099,2]
[344836235,1733821841022,-500.0,0.00011099,2]
[344836236,1733821841031,-500.0,0.00011099,2]
[344836237,1733821841040,-500.0,0.00011099,2]
[344836238,1733821841050,-500.0,0.00011099,2]
[344836239,1733821841059,-500.0,0.00011099,2]
[344836240,1733821841069,-500.0,0.00011099,2]
[344836241,1733821841078,-500.0,0.00011099,2]
[344836242,1733821841087,-316.72,0.00011099,2]
[344836243,1733821841097,-505.42927226,0.00011099,2]
[344836244,1733821841107,-500.0,0.00011099,2]
[344836245,1733821841118,-500.0,0.00011099,2]
[344836246,1733821841127,-411.24,0.00011099,2]
[344836247,1733821841136,-505.15832351,0.00011099,2]
[344836248,1733821841146,-500.0,0.00011099,2]
[344836249,1733821841156,-531.03456535,0.00011099,2]
[344836250,1733821841171,-500.0,0.00011099,2]
[344836251,1733821841182,-501.94458236,0.00011099,2]
[344836252,1733821841192,-507.25425351,0.00011099,2]
[344836253,1733821841202,-500.0,0.00011099,2]
[344836254,1733821841211,-500.0,0.00011099,2]
[344836255,1733821841221,-388.56782533,0.00011099,2]
[344836256,1733821841232,-500.0,0.00011099,2]
[344836257,1733821841242,-500.0,0.00011099,2]
[344836258,1733821841252,-500.0,0.00011099,2]
[344836259,1733821841262,-500.0,0.00011099,2]
[344836260,1733821841271,-500.0,0.00011099,2]
[344836261,1733821841281,-500.71446676,0.00011099,2]
[344836262,1733821841290,-500.0,0.00011099,2]
[344836263,1733821841300,-500.0,0.00011099,2]
[344836264,1733821841310,-500.0,0.00011099,2]
[344836265,1733821841319,-500.0,0.00011099,2]
[344836266,1733821841329,-500.0,0.00011099,2]
[344836267,1733821841338,-500.0,0.00011099,2]
[344836268,1733821841347,-500.0,0.00011099,2]
[344836269,1733821841356,-500.0,0.00011099,2]
[344836270,1733821841366,-282.47562838,0.00011099,2]
[344836271,1733821841376,-504.15018964,0.00011099,2]
[344836272,1733821841385,-500.0,0.00011099,2]
[344836273,1733821841394,-500.0,0.00011099,2]
[344836274,1733821841403,-501.66,0.00011099,2]
[344836275,1733821841413,-352.98851703,0.00011099,2]
[344836276,1733821841422,-507.10382234,0.00011099,2]
[344836277,1733821841431,-500.0,0.00011099,2]
[344836278,1733821841440,-500.0,0.00011099,2]
[344836279,1733821841450,-500.0,0.00011099,2]
[344836280,1733821841459,-500.0,0.00011099,2]
[344836281,1733821841468,-500.0,0.00011099,2]
[344836282,1733821841478,-500.0,0.00011099,2]
[344836283,1733821841487,-500.0,0.00011099,2]
[344836284,1733821841496,-500.0,0.00011099,2]
[344836285,1733821841507,-500.0,0.00011099,2]
[344836286,1733821841516,-500.0,0.00011099,2]
[344836287,1733821841525,-500.0,0.00011099,2]
[344836288,1733821841534,-315.77,0.00011099,2]
[344836289,1733821841543,-505.05451679,0.00011099,2]
[344836290,1733821841553,-1000.0,0.00011099,2]
[344836291,1733821841562,-500.0,0.00011099,2]
[344836292,1733821841573,-502.5023365,0.00011099,2]
[344836293,1733821841587,-500.0,0.00011099,2]
[344836294,1733821841596,-500.0,0.00011099,2]
[344836295,1733821841605,-500.0,0.00011099,2]
[344836296,1733821841617,-500.0,0.00011099,2]
[344836297,1733821841626,-500.0,0.00011099,2]
[344836298,1733821841636,-500.0,0.00011099,2]
[344836299,1733821841645,-580.21922475,0.00011099,2]
[344836300,1733821841656,-500.0,0.00011099,2]
[344836301,1733821841667,-500.0,0.00011099,2]
[344836302,1733821841676,-500.0,0.00011099,2]
[344836303,1733821841685,-500.0,0.00011099,2]
[344836304,1733821841695,-500.0,0.00011099,2]
[344836305,1733821841704,-500.0,0.00011099,2]
[344836306,1733821841714,-500.0,0.00011099,2]
[344836307,1733821841723,-500.0,0.00011099,2]
[344836308,1733821841732,-500.0,0.00011099,2]
[344836309,1733821841741,-500.0,0.00011099,2]
[344836310,1733821841751,-500.0,0.00011099,2]
[344836311,1733821841761,-500.0,0.00011099,2]
[344836312,1733821841771,-500.0,0.00011099,2]
[344836313,1733821841786,-500.0,0.00011099,2]
[344836314,1733821841798,-500.0,0.00011099,2]
[344836315,1733821841808,-284.79,0.00011099,2]
[344836316,1733821841817,-503.29636569,0.00011099,2]
[344836317,1733821841827,-500.75355518,0.00011099,2]
[344836318,1733821841836,-500.0,0.00011099,2]
[344836319,1733821841846,-500.0,0.00011099,2]
[344836320,1733821841855,-504.11225059,0.00011099,2]
[344836321,1733821841868,-500.0,0.00011099,2]
[344836322,1733821841880,-500.0,0.00011099,2]
[344836323,1733821841889,-317.39,0.00011099,2]
[344836324,1733821841899,-505.48308191,0.00011099,2]
[344836325,1733821841908,-500.0,0.00011099,2]
[344836326,1733821841918,-502.73193815,0.00011099,2]
[344836327,1733821841927,-500.0,0.00011099,2]
[344836328,1733821841937,-500.0,0.00011099,2]
[344836329,1733821841946,-502.03944422,0.00011099,2]
[344836330,1733821841956,-500.0,0.00011099,2]
[344836331,1733821841965,-500.0,0.00011099,2]
[344836332,1733821841974,-501.0961895,0.00011099,2]
[344836333,1733821841985,-519.77324841,0.00011099,2]
[344836334,1733821841994,-500.0,0.00011099,2]
[344836335,1733821842004,-500.0,0.00011099,2]
[344836336,1733821842013,-500.0,0.00011099,2]
[344836337,1733821842022,-500.0,0.00011099,2]
[344836338,1733821842032,-500.0,0.00011099,2]
[344836339,1733821842042,-500.0,0.00011099,2]
[344836340,1733821842051,-500.0,0.00011099,2]
[344836341,1733821842061,-500.0,0.00011099,2]
[344836342,1733821842070,-500.0,0.00011099,2]
[344836343,1733821842079,-503.87573084,0.00011099,2]
[344836344,1733821842094,-500.0,0.00011099,2]
[344836345,1733821842103,-500.0,0.00011099,2]
[344836346,1733821842118,-500.0,0.00011099,2]
[344836347,1733821842128,-500.0,0.00011099,2]
[344836348,1733821842137,-500.0,0.00011099,2]
[344836349,1733821842146,-500.0,0.00011099,2]
[344836350,1733821842156,-500.0,0.00011099,2]
[344836351,1733821842166,-500.0,0.00011099,2]
[344836352,1733821842175,-500.0,0.00011099,2]
[344836353,1733821842185,-300.17,0.00011099,2]
[344836354,1733821842195,-332.78140525,0.00011099,2]
[344836355,1733821842205,-500.0,0.00011099,2]
[344836356,1733821842214,-759.89,0.00011099,2]
[344836357,1733821842224,-759.89,0.00011099,2]
[344836358,1733821842234,-759.89,0.00011099,2]
[344836359,1733821842243,-759.89,0.00011099,2]
[344836360,1733821842253,-759.89,0.00011099,2]
[344836361,1733821842263,-759.89,0.00011099,2]
[344836362,1733821842273,-759.89,0.00011099,2]
[344836364,1733821842283,-759.89,0.00011099,2]
[344836365,1733821842293,-759.89,0.00011099,2]
[344836366,1733821842303,-759.89,0.00011099,2]
[344836367,1733821842313,-759.89,0.00011099,2]
[344836368,1733821842321,-759.89,0.00011099,2]
[344836370,1733821842331,-759.89,0.00011099,2]
[344836372,1733821842341,-759.89,0.00011099,2]
[344836374,1733821842351,-759.89,0.00011099,2]
[344836376,1733821842360,-759.89,0.00011099,2]
[344836378,1733821842375,-759.89,0.00011099,2]
[344836380,1733821842385,-759.89,0.00011099,2]
[344836382,1733821842394,-759.89,0.00011099,2]
[344836383,1733821842404,-759.89,0.00011099,2]
[344836384,1733821842413,-759.89,0.00011099,2]
[344836385,1733821842423,-759.89,0.00011099,2]
[344836386,1733821842432,-760.07,0.00011099,2]
[344836387,1733821842442,-500.0,0.00011099,2]
[344836388,1733821842451,-177.66,0.00011099,2]
[344836389,1733821842462,-500.0,0.00011099,2]
[344836390,1733821842472,-500.0,0.00011099,2]
[344836391,1733821842482,-500.0,0.00011099,2]
[344836392,1733821842491,-500.0,0.00011099,2]
[344836393,1733821842499,-500.0,0.00011099,2]
[344836394,1733821842508,-500.0,0.00011099,2]
[344836395,1733821842518,-500.0,0.00011099,2]
[344836396,1733821842527,-500.0,0.00011099,2]
[344836397,1733821842536,-500.0,0.00011099,2]
[344836398,1733821842546,-500.0,0.00011099,2]
[344836399,1733821842555,-500.0,0.00011099,2]
[344836400,1733821842565,-500.0,0.00011099,2]
[344836401,1733821842577,-500.0,0.00011099,2]
[344836402,1733821842586,-500.0,0.00011099,2]
[344836403,1733821842596,-500.0,0.00011099,2]
[344836404,1733821842605,-500.0,0.00011099,2]
[344836405,1733821842619,-500.0,0.00011099,2]
[344836406,1733821842629,-375.14,0.00011099,2]
[344836407,1733821842638,-500.0,0.00011099,2]
[344836408,1733821842649,-500.0,0.00011099,2]
[344836409,1733821842659,-500.0,0.00011099,2]
[344836410,1733821842669,-500.0,0.00011099,2]
[344836411,1733821842679,-500.0,0.00011099,2]
[344836412,1733821842689,-500.53118877,0.00011099,2]
[344836413,1733821842699,-500.0,0.00011099,2]
[344836414,1733821842710,-500.0,0.00011099,2]
[344836415,1733821842720,-500.0,0.00011099,2]
[344836416,1733821842731,-500.0,0.00011099,2]
[344836417,1733821842740,-500.0,0.00011099,2]
[344836418,1733821842750,-500.0,0.00011099,2]
[344836419,1733821842760,-500.0,0.00011099,2]
[344836420,1733821842769,-500.0,0.00011099,2]
[344836421,1733821842779,-500.54249039,0.00011099,2]
[344836422,1733821842789,-500.0,0.00011099,2]
[344836423,1733821842799,-500.0,0.00011099,2]
[344836424,1733821842808,-510.58,0.00011099,2]
[344836425,1733821842818,-553.70222868,0.00011099,2]
[344836426,1733821842828,-500.0,0.00011099,2]
[344836427,1733821842838,-500.0,0.00011099,2]
[344836428,1733821842847,-500.0,0.00011099,2]
[344836429,1733821842857,-500.0,0.00011099,2]
[344836430,1733821842871,-500.0,0.00011099,2]
[344836431,1733821842880,-500.0,0.00011099,2]
[344836432,1733821842890,-500.0,0.00011099,2]
[344836433,1733821842900,-500.0,0.00011099,2]
[344836434,1733821842909,-500.0,0.00011099,2]
[344836435,1733821842919,-500.0,0.00011099,2]
[344836436,1733821842929,-500.0,0.00011099,2]
[344836437,1733821842938,-472.29014302,0.00011099,2]
[344836438,1733821842948,-500.0,0.00011099,2]
[344836439,1733821842957,-601.64,0.00011099,2]
[344836440,1733821842967,-500.0,0.00011099,2]
[344836441,1733821842977,-500.0,0.00011099,2]
[344836442,1733821842986,-500.0,0.00011099,2]
[344836443,1733821842996,-500.0,0.00011099,2]
[344836444,1733821843006,-476.94,0.00011099,2]
[344836445,1733821843015,-505.69761627,0.00011099,2]
[344836447,1733821843025,-500.0,0.00011099,2]
[344836448,1733821843034,-510.15261606,0.00011099,2]
[344836449,1733821843044,-500.0,0.00011099,2]
[344836450,1733821843053,-500.0,0.00011099,2]
[344836451,1733821843062,-500.0,0.00011099,2]
[344836452,1733821843072,-258.14,0.00011099,2]
[344836453,1733821843081,-500.0,0.00011099,2]
[344836454,1733821843091,-500.0,0.00011099,2]
[344836455,1733821843100,-496.15871636,0.00011099,2]
[344836456,1733821843109,-500.0,0.00011099,2]
[344836457,1733821843122,-500.50899837,0.00011099,2]
[344836458,1733821843132,-512.71708939,0.00011099,2]
[344836459,1733821843142,-502.82238615,0.00011099,2]
[344836460,1733821843151,-500.0,0.00011099,2]
[344836461,1733821843160,-503.9357861,0.00011099,2]
[344836462,1733821843170,-500.0,0.00011099,2]
[344836463,1733821843179,-501.73687063,0.00011099,2]
[344836464,1733821843190,-500.0,0.00011099,2]
[344836465,1733821843200,-556.34,0.00011099,2]
[344836466,1733821843211,-500.0,0.00011099,2]
[344836467,1733821843220,-500.0,0.00011099,2]
[344836468,1733821843233,-503.24970608,0.00011099,2]
[344836469,1733821843243,-500.0,0.00011099,2]
[344836470,1733821843253,-500.0,0.00011099,2]
[344836471,1733821843263,-784.07,0.00011099,2]
[344836472,1733821843273,-500.0,0.00011099,2]
[344836473,1733821843283,-500.0,0.00011099,2]
[344836474,1733821843293,-784.07,0.00011099,2]
[344836475,1733821843303,-500.0,0.00011099,2]
[344836476,1733821843312,-784.07,0.00011099,2]
[344836477,1733821843322,-500.0,0.00011099,2]
[344836478,1733821843331,-500.0,0.00011099,2]
[344836479,1733821843341,-784.07,0.00011099,2]
[344836480,1733821843350,-500.0,0.00011099,2]
[344836481,1733821843526,-500.0,0.00011099,2]
[344836482,1733821843536,-784.07,0.00011099,2]
[344836483,1733821843546,-231.92,0.00011099,2]
[344836484,1733821843556,-784.07,0.00011099,2]
[344836485,1733821843566,-266.3,0.00011099,2]
[344836486,1733821843577,-784.07,0.00011099,2]
[344836487,1733821843587,-784.07,0.00011099,2]
[344836488,1733821843597,-784.07,0.00011099,2]
[344836489,1733821843606,-500.0,0.00011099,2]
[344836490,1733821843620,-784.07,0.00011099,2]
[344836491,1733821843630,-500.0,0.00011099,2]
[344836492,1733821843639,-784.07,0.00011099,2]
[344836493,1733821843652,-784.07,0.00011099,2]
[344836494,1733821843662,-784.07,0.00011099,2]
[344836495,1733821843673,-784.07,0.00011099,2]
[344836496,1733821843683,-784.07,0.00011099,2]
[344836497,1733821843693,-784.07,0.00011099,2]
[344836498,1733821843702,-500.92755671,0.00011099,2]
[344836499,1733821843712,-784.07,0.00011099,2]
[344836500,1733821843721,-784.07,0.00011099,2]
[344836501,1733821843731,-633.41,0.00011099,2]
[344836502,1733821843741,-784.07,0.00011099,2]
[344836503,1733821843750,-784.07,0.00011099,2]
[344836504,1733821843760,-784.07,0.00011099,2]
[344836505,1733821843769,-784.07,0.00011099,2]
[344836506,1733821843779,-784.08,0.00011099,2]
[344836507,1733821843788,-503.15805289,0.00011099,2]
[344836508,1733821843797,-986.0,0.00011099,2]
[344836509,1733821843807,-6192557.27767967,0.000111,2]
[344836510,1733821843816,-226377.11246475,0.000111,2]
[344836511,1733821843825,-3694158.44707653,0.000111,2]
[344836512,1733821844075,-500.0,0.00011098,2]
[344836513,1733821844085,-540.65603547,0.00011099,2]
[344836514,1733821844094,-568.63911711,0.000111,2]
[344836515,1733821844105,-18829.75391419,0.000111,2]
[344836516,1733821844116,-378.48713035,0.000111,2]
[344836517,1733821844127,-562.215,0.000111,2]
[344836518,1733821844176,-4622.50684987,0.000111,2]
[344836521,1733821845542,-7220.2477625,0.000111,2]
[344836522,1733821845602,-82245.86102295,0.000111,2]
[344836523,1733821845634,-324.98805144,0.000111,2]
[344836524,1733821845645,-91532.98394906,0.000111,2]
[344836525,1733821845658,-2638.18134245,0.000111,2]
[344836526,1733821845669,-1244.63550195,0.000111,2]
[344836543,1733822086368,644.42,8.593e-05,2]
[344836546,1733822259251,152.32863139,0.0001,2]
[344836547,1733822553109,166.66666667,9.992e-05,2]
[344836841,1733822657069,1337.5,0.00016658,30]
[344836842,1733822690344,1709.47,9.991e-05,2]
[344836847,1733822813415,165.89,9.958e-05,2]
[344836848,1733822814965,250.0,9.958e-05,2]
[344836850,1733822822259,162.26,9.958e-05,2]
[344836851,1733822843976,200.0,9.974e-05,2]
[344836853,1733822907256,257.98889949,9.954e-05,2]
[344836855,1733822930438,300.0,9.9e-05,2]
[344836858,1733823014838,612.19,8.219e-05,2]
[344836859,1733823017114,200.0,0.0001,3]
[344836875,1733823031823,-756.0,0.00010016,2]
[344836876,1733823031995,-3062.1,0.00010016,2]
[344836877,1733823032004,-200.0,0.00010054,2]
[344836878,1733823032014,-184.34,0.00010092,2]
[344836879,1733823032023,-295.5,0.00010127,2]
[344836880,1733823032032,-432.03,0.00010189,2]
[344836881,1733823032042,-1000.0,0.0001036,2]
[344836882,1733823032051,-167.9,0.0001036,2]
[344836883,1733823032060,-612.19,0.00010472,2]
[344836884,1733823032069,-323.79066183,0.000105,2]
[344836885,1733823032079,-328.074,0.0001055,2]
[344836886,1733823032088,-1015.86,0.00010582,2]
[344836887,1733823032098,-300.0,0.0001061,2]
[344836888,1733823032107,-1867.7091095,0.00010611,2]
[344836889,1733823032119,-715.55,0.00010611,2]
[344836891,1733823032131,-12573.0208905,0.00010611,2]
[344836893,1733823032140,-950.79,0.00010612,2]
[344836895,1733823032149,-300.0,0.00010666,2]
[344836896,1733823032159,-150.0,0.00010799,2]
[344836897,1733823032168,-2500.0,0.000108,2]
[344836898,1733823032177,-20506.29189146,0.000108,2]
[344836899,1733823032188,-944.70390854,0.000108,2]
[344836900,1733823032198,-1000.0,0.000108,5]
[344836901,1733823032207,-159.79515398,0.00010873,2]
[344836902,1733823032216,-159.791776,0.00010873,2]
[344836903,1733823032225,-157.791776,0.00010873,2]
[344836904,1733823032234,-159.791776,0.00010873,2]
[344836905,1733823032243,-159.791776,0.00010873,2]
[344836906,1733823032253,-299.60958,0.00010873,2]
[344836907,1733823032262,-159.791776,0.00010873,2]
[344836908,1733823032271,-159.791776,0.00010873,2]
[344836910,1733823032280,-159.791776,0.00010873,2]
[344836911,1733823032289,-159.791776,0.00010873,2]
[344836912,1733823032298,-159.79,0.00010873,2]
[344836913,1733823032307,-159.791776,0.00010873,2]
[344836914,1733823032316,-159.791776,0.00010873,2]
[344836915,1733823032325,-159.791776,0.00010873,2]
[344836916,1733823032334,-159.791776,0.00010873,2]
[344836917,1733823032343,-159.791776,0.00010873,2]
[344836918,1733823032352,-159.791776,0.00010873,2]